bitfinex-derivatives/quotes_ETHF0:USTF0_20250830
["timestamp","ask_amount","ask_price","bid_price","bid_amount"]
[1756595828156,0.5048,4372.1,4372.0,2.35813172]
[1756595830268,0.5048,4372.1,4372.0,0.727]
[1756595835669,0.5048,4372.1,4372.0,0.497]
[1756595835867,0.5048,4372.1,4372.0,0.727]
[1756595839878,3.2078,4373.0,4372.0,0.727]
[1756595840075,0.3017,4372.8,4372.1,0.3064]
[1756595840579,0.5048,4372.6,4372.5,0.497]
[1756595841079,3.2078,4373.0,4372.5,0.497]
[1756595841080,0.3017,4373.0,4372.9,0.1906]
[1756595841282,0.5048,4373.0,4372.9,0.727]
[1756595846477,0.3017,4373.0,4372.9,0.727]
[1756595850590,0.5048,4373.0,4372.9,0.727]
[1756595858380,0.3066,4374.5,4373.9,0.1931]
[1756595858581,0.5112,4374.5,4374.4,0.4806]
[1756595858779,0.2046,4374.5,4374.1,1.91863172]
[1756595858983,0.2046,4374.2,4373.9,3.4953]
[1756595859187,0.5112,4373.9,4373.2,1.63113172]
[1756595859378,0.3066,4373.2,4373.0,1.63113172]
[1756595859585,0.3066,4373.0,4372.9,0.1931]
[1756595859985,0.3066,4373.0,4372.9,0.4806]
[1756595860187,0.3066,4374.0,4373.0,0.2875]
[1756595860379,0.5112,4374.0,4373.9,0.4806]
[1756595861382,0.3066,4374.6,4374.0,0.2875]
[1756595861695,0.2046,4374.1,4374.0,0.4806]
[1756595861991,0.2046,4374.1,4374.0,0.7116]
[1756595861992,0.5112,4374.1,4374.0,0.7116]
[1756595862191,0.5112,4374.1,4374.0,0.4806]
[1756595862592,0.5112,4374.1,4374.0,0.7116]
[1756595862995,0.5112,4374.1,4374.0,0.4806]
[1756595863198,0.5112,4374.1,4374.0,0.7116]
[1756595863398,0.5112,4373.9,4373.5,1.62914773]
[1756595863699,0.5112,4373.7,4373.6,0.7116]
[1756595867190,0.5112,4373.7,4373.3,4.83694773]
[1756595867383,3.2078,4374.2,4373.3,4.83694773]
[1756595867384,0.2046,4373.5,4373.4,0.231]
[1756595867594,0.5112,4373.5,4373.4,0.7116]
[1756595867989,0.3066,4374.1,4373.5,0.2875]
[1756595868191,0.5112,4374.1,4374.0,0.4806]
[1756595868486,0.5112,4374.1,4374.0,0.4251]
[1756595868692,0.5112,4374.1,4374.0,0.232]
[1756595870997,0.5112,4374.1,4373.7,0.2875]
[1756595871295,0.5112,4373.9,4373.8,0.231]
[1756595871998,0.5112,4373.9,4373.8,0.5185]
[1756595872697,0.5112,4373.9,4373.8,0.231]
[1756595877603,0.5112,4373.9,4373.3,3.2078]
[1756595877807,0.2046,4373.5,4373.4,0.7116]
[1756595877993,3.2078,4374.2,4373.5,0.2875]
[1756595877994,0.3066,4374.1,4373.5,0.2875]
[1756595878198,0.5112,4374.1,4374.0,0.1931]
[1756595878401,0.5112,4374.1,4373.8,0.2875]
[1756595878704,0.5112,4374.1,4373.4,0.231]
[1756595878705,0.5112,4374.1,4373.5,0.2875]
[1756595880304,0.5112,4374.1,4374.0,0.4806]
[1756595886010,0.5112,4374.1,4373.6,0.231]
[1756595886411,0.5112,4373.7,4373.6,0.7116]
[1756595890312,0.3066,4373.7,4373.6,0.7116]
[1756595892412,0.3066,4373.7,4373.6,2.34074773]
[1756595894813,3.2078,4374.7,4373.6,2.34074773]
[1756595895013,0.2884,4374.5,4373.7,0.3001]
[1756595895209,0.2884,4374.3,4373.7,0.3001]
[1756595895714,0.51702,4374.3,4373.7,0.3001]
[1756595896719,0.2884,4374.3,4373.7,0.3001]
[1756595898214,0.4811,4374.3,4374.2,0.5029]
[1756595902518,3.4962,4374.7,4374.2,0.2028]
[1756595902822,3.4005,4374.7,4374.2,0.3001]
[1756595903021,0.1927,4374.2,4374.1,2.06294773]
[1756595903322,0.4811,4374.2,4374.1,2.06294773]
[1756595903512,0.4811,4374.2,4374.1,2.36304773]
[1756595904224,0.4811,4374.2,4374.1,0.5029]
[1756595904524,0.4811,4374.2,4374.1,0.7339]
[1756595905623,0.4811,4374.2,4374.1,0.5029]
[1756595906122,0.4811,4374.2,4374.1,0.7339]
[1756595908721,0.4811,4374.2,4374.0,1.62914773]
[1756595908923,0.4811,4374.0,4373.9,2.13204773]
[1756595909122,0.4811,4374.0,4373.9,2.36304773]
[1756595916232,0.2884,4374.0,4373.9,2.36304773]
[1756595918732,0.4811,4374.0,4373.9,2.36304773]
[1756595925136,0.4811,4374.0,4373.9,0.7339]
[1756595930943,3.2078,4374.7,4373.9,0.7339]
[1756595931139,0.5044,4374.2,4374.1,2.11758933]
[1756595931339,0.5044,4374.2,4374.1,2.34858933]
[1756595932235,0.3011,4374.6,4374.2,0.2991]
[1756595932438,0.733,4374.6,4374.5,0.4882]
[1756595932639,0.5044,4374.6,4374.5,0.4882]
[1756595932840,0.5044,4374.6,4374.5,0.7192]
[1756595933040,0.73299,4374.6,4374.5,0.7192]
[1756595933746,0.5044,4374.6,4374.5,0.4201]
[1756595936738,0.5044,4374.6,4374.5,0.7192]
[1756595937745,0.5044,4374.6,4374.5,0.231]
[1756595938349,0.5044,4374.6,4374.5,0.7192]
[1756595938545,0.3011,4374.6,4374.5,0.7192]
[1756595938845,0.5044,4374.6,4374.5,0.7192]
[1756595944551,0.5044,4374.6,4374.5,0.231]
[1756595953356,0.5044,4374.6,4374.5,0.7332]
[1756595953957,0.5044,4374.6,4374.5,0.5022]
[1756595956752,0.2051,4374.4,4374.3,0.5022]
[1756595956954,0.4892,4374.4,4374.3,0.1927]
[1756595957154,0.4892,4373.6,4373.5,1.31878933]
[1756595957454,0.4892,4373.6,4372.0,3.2078]
[1756595957455,0.2465,4372.9,4372.0,3.2078]
[1756595957652,0.2465,4373.0,4372.1,0.3095]
[1756595957856,0.4516,4371.7,4371.6,2.03765614]
[1756595958163,3.2078,4371.7,4370.6,2.26865614]
[1756595958461,0.4516,4371.1,4371.0,3.71]
[1756595958856,0.2465,4371.3,4371.0,3.71]
[1756595959058,0.4516,4371.3,4371.2,0.1927]
[1756595959258,0.4516,4371.3,4371.2,0.5022]
[1756595959762,0.4516,4370.7,4370.6,0.5022]
[1756595961755,0.4516,4370.7,4370.5,3.2078]
[1756595961756,4.0,4370.7,4369.4,0.3095]
[1756595961961,0.4519,4369.5,4369.4,0.5022]
[1756595962862,0.2468,4369.8,4369.4,0.1927]
[1756595963057,0.2468,4369.8,4369.7,0.1927]
[1756595963363,0.4519,4369.8,4369.7,0.5022]
[1756595975672,0.4519,4369.8,4369.7,0.3095]
[1756595975866,0.4371,4369.8,4368.7,3.2078]
[1756595976072,0.2468,4369.7,4368.9,0.3095]
[1756595976568,0.232,4369.8,4368.9,0.3095]
[1756595976768,0.4519,4369.0,4368.9,0.5022]
[1756595978266,3.2078,4369.3,4369.2,0.4888]
[1756595978772,3.4549,4369.3,4369.2,0.4888]
[1756595979574,3.6489,4369.3,4369.2,0.4888]
[1756595982167,3.6489,4369.3,4368.7,3.2078]
[1756595982472,0.194,4368.7,4368.6,0.7208]
[1756595982677,0.4411,4368.7,4368.6,0.4888]
[1756595983778,0.194,4368.7,4368.6,0.4888]
[1756595984777,0.4411,4368.7,4368.6,0.4888]
[1756595989966,3.2078,4369.3,4368.7,0.2864]
[1756595990178,3.6489,4369.3,4369.2,0.4888]
[1756595990479,3.93915539,4369.3,4368.3,0.2864]
[1756595990678,0.78445539,4369.2,4368.5,0.2864]
[1756595990872,0.4411,4369.0,4368.9,0.2024]
[1756595991176,0.97845539,4369.0,4368.9,0.4888]
[1756595992173,0.53735539,4369.0,4368.9,0.4888]
[1756595992377,0.53735539,4369.2,4368.9,0.4888]
[1756595992579,0.53735539,4369.2,4369.1,0.2024]
[1756595992979,0.53735539,4369.2,4369.1,0.4888]
[1756595993578,0.78445539,4369.2,4369.1,0.4888]
[1756595994878,0.97845539,4369.2,4369.1,0.4888]
[1756595997582,0.97845539,4369.2,4369.1,0.2864]
[1756595998072,0.97845539,4369.2,4369.1,0.4888]
[1756596000382,0.53735539,4369.2,4369.1,0.4888]
[1756596001085,0.78445539,4369.2,4369.1,0.4888]
[1756596001687,0.97845539,4369.2,4369.1,0.4888]
[1756596001988,0.2471,4369.1,4368.3,0.5174]
[1756596002187,0.4411,4368.5,4368.4,0.4888]
[1756596002879,0.53735539,4368.5,4368.4,0.4888]
[1756596003080,0.78534874,4368.7,4368.6,0.2024]
[1756596003282,0.78534874,4368.7,4368.6,0.4888]
[1756596003684,0.97934874,4368.7,4368.6,0.4888]
[1756596008707,0.53824874,4368.7,4368.6,0.4888]
[1756596010210,0.53824874,4368.7,4368.6,0.7198]
[1756596010511,3.2078,4369.3,4368.6,4.9487]
[1756596010708,0.78662746,4369.2,4369.1,0.4867]
[1756596010908,0.97912746,4369.2,4369.1,0.4867]
[1756596014305,0.4405,4369.2,4369.1,0.4867]
[1756596015008,0.4405,4369.2,4368.8,0.231]
[1756596015207,0.4405,4368.9,4368.8,0.52]
[1756596015615,0.4405,4368.9,4368.8,0.7177]
[1756596018914,0.4405,4368.9,4368.8,0.4867]
[1756596019312,0.248,4368.8,4368.3,0.289]
[1756596019518,0.4405,4368.8,4368.7,0.4867]
[1756596023021,3.3218,4369.1,4368.7,0.4867]
[1756596023222,0.2472,4369.0,4368.8,0.289]
[1756596023421,0.4397,4369.0,4368.9,0.4867]
[1756596024824,3.3218,4369.1,4369.0,0.289]
[1756596025125,0.114,4369.1,4369.0,0.4867]
[1756596025514,0.5537,4369.1,4369.0,0.4867]
[1756596028025,0.114,4369.1,4369.0,0.4867]
[1756596029428,0.2472,4369.6,4369.0,0.1977]
[1756596029627,0.4397,4369.4,4369.3,0.1977]
[1756596029827,0.4397,4369.4,4369.3,0.4867]
[1756596045244,0.4397,4369.4,4368.9,0.3034]
[1756596048455,0.4397,4369.4,4369.3,0.1926]
[1756596048651,0.4397,4369.4,4369.3,0.496]
[1756596050959,0.4397,4369.4,4368.8,0.231]
[1756596051251,3.4388,4369.7,4368.6,0.496]
[1756596051252,0.4346,4368.7,4368.6,0.496]
[1756596051955,0.247,4368.9,4368.6,0.496]
[1756596052145,0.361,4368.9,4368.6,0.1926]
[1756596052347,0.114,4368.9,4368.8,0.496]
[1756596052745,0.114,4368.9,4368.8,3.7038]
[1756596061958,3.2078,4369.7,4368.8,7.93268999]
[1756596062257,3.6849,4369.7,4369.6,0.3034]
[1756596062453,0.4771,4369.2,4369.1,0.496]
[1756596062660,0.4771,4369.2,4369.1,0.3034]
[1756596062958,0.4771,4369.2,4368.8,0.231]
[1756596063153,0.4771,4369.2,4368.9,0.3034]
[1756596063554,0.4771,4369.2,4368.8,0.231]
[1756596063752,0.4771,4369.2,4368.9,0.3034]
[1756596063955,3.3954,4369.2,4368.5,0.3034]
[1756596064261,0.4771,4368.6,4368.5,0.5344]
[1756596064453,0.4771,4368.6,4368.5,0.727]
[1756596064853,3.2078,4369.2,4368.5,0.727]
[1756596065151,1.01600243,4369.1,4369.0,0.496]
[1756596067259,1.01600243,4369.1,4368.5,0.231]
[1756596067455,0.4771,4369.1,4368.5,0.231]
[1756596067659,0.4771,4369.1,4368.6,0.2823]
[1756596069351,0.4771,4369.1,4368.4,0.2823]
[1756596070862,0.4771,4369.1,4369.0,0.4858]
[1756596079570,1.01545632,4369.1,4368.4,0.2823]
[1756596079768,0.4771,4369.1,4368.4,0.2823]
[1756596079958,0.1908,4368.5,4368.4,0.4858]
[1756596080167,0.4809,4368.5,4368.4,0.4858]
[1756596086379,0.2901,4369.1,4369.0,0.2035]
[1756596086580,0.82850299,4369.1,4369.0,0.4858]
[1756596087181,1.01930299,4369.1,4369.0,0.4858]
[1756596087570,0.4809,4369.1,4369.0,0.4858]
[1756596087777,1.01932418,4369.1,4369.0,0.4858]
[1756596088481,0.4809,4369.1,4369.0,0.4858]
[1756596089178,0.53855834,4369.1,4369.0,0.4858]
[1756596089378,0.4809,4369.6,4369.5,0.2035]
[1756596089585,0.4809,4369.6,4369.5,0.4858]
[1756596092081,3.2078,4369.8,4369.6,0.2823]
[1756596092385,3.2078,4369.8,4369.7,0.4858]
[1756596092982,3.2078,4369.8,4369.7,4.71465]
[1756596093182,0.231,4370.5,4369.8,0.2823]
[1756596093377,0.2901,4370.6,4370.5,0.2823]
[1756596093581,1.01903604,4370.6,4370.5,0.4858]
[1756596094181,3.2078,4370.7,4370.5,0.4858]
[1756596094387,3.2078,4370.7,4370.6,0.4858]
[1756596097486,0.2896,4371.7,4370.7,0.305]
[1756596097693,0.4915,4371.7,4371.6,0.498]
[1756596098191,0.4915,4371.7,4370.5,3.2078]
[1756596098492,0.4915,4371.7,4370.7,0.305]
[1756596098989,0.2896,4371.6,4370.8,0.305]
[1756596099191,0.4915,4371.6,4371.5,0.193]
[1756596099490,0.4915,4371.6,4371.5,0.498]
[1756596104994,0.4915,4371.6,4371.0,0.305]
[1756596109589,0.4915,4371.6,4371.5,0.193]
[1756596109789,0.4915,4371.6,4371.5,0.498]
[1756596124209,1.02957042,4371.6,4371.5,0.498]
[1756596126799,0.53807042,4371.6,4371.5,0.498]
[1756596130012,1.02797042,4371.6,4371.5,0.498]
[1756596130413,1.02797042,4371.6,4370.7,1.84464721]
[1756596130612,0.2984,4371.4,4370.9,0.2906]
[1756596130808,0.4899,4371.4,4371.3,0.4966]
[1756596135324,0.1915,4371.4,4370.9,0.2906]
[1756596135519,0.231,4371.6,4370.9,0.4966]
[1756596135520,0.1915,4371.0,4370.9,0.4966]
[1756596135715,0.4899,4371.0,4370.9,0.4966]
[1756596143429,0.231,4371.6,4370.9,0.206]
[1756596143628,0.4899,4371.4,4371.3,0.4966]
[1756596145825,0.231,4371.6,4371.4,0.2906]
[1756596146030,0.231,4371.6,4371.5,0.4966]
[1756596146431,0.53831654,4371.6,4371.5,0.4966]
[1756596151832,0.2984,4371.7,4371.5,0.206]
[1756596152029,0.2984,4371.7,4371.6,0.4966]
[1756596152229,0.83668259,4371.7,4371.6,0.4966]
[1756596153434,0.53828259,4371.7,4371.6,0.4966]
[1756596154134,0.83668259,4371.7,4371.6,0.4966]
[1756596154837,1.02818259,4371.7,4371.6,0.4966]
[1756596159434,3.2078,4372.3,4371.6,0.4966]
[1756596159435,0.3067,4372.0,4371.6,0.4966]
[1756596159742,0.5136,4371.8,4371.7,0.283]
[1756596165143,0.5136,4371.8,4371.7,0.4734]
[1756596180045,3.7214,4371.8,4371.0,4.82144721]
[1756596180251,0.5136,4371.3,4371.2,0.4734]
[1756596180644,0.5136,4371.3,4371.2,0.70217]
[1756596180843,0.5136,4371.3,4371.0,3.2078]
[1756596180844,0.3067,4371.2,4371.0,0.283]
[1756596181048,0.2069,4370.8,4370.7,0.4734]
[1756596181245,0.5136,4370.8,4370.7,0.4734]
[1756596181441,0.2069,4370.8,4370.6,0.283]
[1756596181646,0.5136,4370.6,4370.5,3.2078]
[1756596181852,0.5136,4370.6,4370.5,3.6812]
[1756596183153,0.5136,4370.6,4370.5,0.4734]
[1756596186552,0.5136,4370.6,4369.8,1.61364721]
[1756596186752,0.5136,4370.5,4370.4,0.4734]
[1756596196460,0.5136,4370.5,4369.7,36.1618]
[1756596196764,0.4905,4370.0,4369.9,0.5072]
[1756596198858,0.4905,4370.0,4369.5,0.23]
[1756596199166,0.4905,4370.0,4369.6,0.304]
[1756596199368,0.4905,4369.7,4369.6,0.304]
[1756596200165,0.4905,4369.7,4369.6,0.5072]
[1756596200364,3.2078,4369.8,4369.7,0.304]
[1756596200663,3.2078,4369.8,4369.7,0.5072]
[1756596201367,3.5045,4369.8,4369.7,0.5072]
[1756596202269,3.6983,4369.8,4369.7,0.5072]
[1756596206172,0.4905,4369.8,4369.7,0.5072]
[1756596211682,3.6983,4369.8,4369.7,0.5072]
[1756596211878,3.6983,4369.8,4369.2,0.23]
[1756596212084,3.6983,4369.8,4369.3,0.304]
[1756596212486,3.6983,4369.8,4369.2,0.23]
[1756596212688,3.6983,4369.8,4369.3,0.304]
[1756596212887,3.6983,4369.8,4369.2,0.23]
[1756596213287,3.6983,4369.8,4369.3,0.304]
[1756596214085,3.6983,4369.8,4369.2,0.23]
[1756596214290,3.6983,4369.8,4369.3,0.304]
[1756596214892,3.6983,4369.8,4369.2,0.23]
[1756596215284,3.6983,4369.8,4369.3,0.304]
[1756596215489,3.6983,4369.8,4369.2,0.23]
[1756596215888,3.6983,4369.8,4369.3,0.304]
[1756596216089,3.6983,4369.8,4369.2,0.23]
[1756596216588,3.6983,4369.8,4369.3,0.304]
[1756596216791,0.1938,4369.4,4369.3,0.5072]
[1756596216985,0.4905,4369.4,4369.3,0.5072]
[1756596217188,0.1938,4368.9,4368.8,3.411]
[1756596217395,0.4828,4368.9,4368.8,3.411]
[1756596217888,0.4828,4368.9,4368.8,0.49]
[1756596219493,0.1938,4368.9,4368.4,0.2868]
[1756596219793,0.4809,4368.5,4368.4,0.49]
[1756596227904,0.1919,4368.6,4367.8,3.2078]
[1756596228102,0.4809,4368.6,4368.5,0.49]
[1756596231003,0.4809,4368.6,4367.6,0.23]
[1756596231306,0.289,4368.5,4367.8,0.2868]
[1756596231802,0.4809,4367.9,4367.8,0.49]
[1756596234402,0.4809,4367.9,4367.3,3.2078]
[1756596234403,0.289,4367.8,4366.9,32.967]
[1756596234602,3.4378,4368.2,4366.9,32.967]
[1756596234603,0.51796,4368.1,4367.0,0.2868]
[1756596235008,3.2078,4367.7,4367.0,0.2868]
[1756596235202,0.4809,4367.6,4367.5,0.2032]
[1756596235398,0.4809,4367.6,4367.5,0.49]
[1756596247217,0.4809,4367.6,4366.9,32.967]
[1756596247218,0.231,4368.0,4367.9,0.2032]
[1756596247915,0.231,4368.0,4367.9,0.4937]
[1756596250420,0.5115,4368.0,4367.9,0.4937]
[1756596251518,0.704,4368.0,4367.9,0.4937]
[1756596256621,0.473,4368.0,4367.9,0.4937]
[1756596260428,1.01051232,4368.0,4367.9,0.4937]
[1756596266326,1.24051232,4368.0,4367.9,0.4937]
[1756596267521,1.01051232,4368.0,4367.9,0.4937]
[1756596285434,0.53751232,4368.0,4367.9,0.4937]
[1756596285641,3.2078,4368.1,4367.9,0.43214]
[1756596285939,3.685,4368.1,4368.0,0.5018]
[1756596288741,0.4772,4368.1,4368.0,0.5018]
[1756596290635,3.7254,4368.3,4368.2,0.2028]
[1756596290833,4.2632724,4368.3,4368.2,0.5018]
[1756596291342,0.5176,4368.3,4368.2,0.5018]
[1756596292143,0.2876,4368.3,4368.2,0.5018]
[1756596292345,3.2078,4368.9,4367.9,3.2078]
[1756596292346,0.4772,4368.8,4368.7,0.5018]
[1756596292543,1.24484994,4368.8,4368.7,0.5018]
[1756596295145,1.01484994,4368.8,4368.7,0.5018]
[1756596295346,1.24484994,4368.8,4368.7,0.5018]
[1756596298756,1.24484994,4368.8,4368.7,0.299]
[1756596299457,0.1896,4368.1,4368.0,0.5018]
[1756596299758,0.4772,4368.1,4368.0,0.5018]
[1756596299954,0.23,4368.6,4368.0,0.2028]
[1756596300155,0.2876,4368.5,4368.1,0.299]
[1756596300452,0.4772,4368.5,4368.4,0.5018]
[1756596301053,0.1896,4368.5,4368.4,0.5018]
[1756596301659,0.4772,4368.5,4368.4,0.5018]
[1756596304757,0.1896,4368.5,4368.0,0.299]
[1756596304961,0.4772,4368.0,4367.9,3.4106]
[1756596305362,0.4772,4368.0,4367.9,3.7096]
[1756596310254,0.4772,4368.0,4367.9,0.299]
[1756596310464,0.4772,4368.0,4367.7,0.3068]
[1756596311366,0.4772,4368.0,4367.9,0.4951]
[1756596312368,3.2078,4368.4,4367.9,0.4951]
[1756596312573,3.6992,4368.4,4368.3,0.4951]
[1756596312865,4.23559285,4368.4,4368.3,0.4951]
[1756596321870,4.46559285,4368.4,4368.3,0.4951]
[1756596322176,4.23559285,4368.4,4368.3,0.4951]
[1756596322476,4.46559285,4368.4,4368.3,0.4951]
[1756596323081,4.23559285,4368.4,4368.3,0.4951]
[1756596323277,4.46559285,4368.4,4368.3,0.4951]
[1756596326576,4.23559285,4368.4,4368.3,0.4951]
[1756596326883,4.46559285,4368.4,4367.7,0.3068]
[1756596327083,0.4914,4367.8,4367.7,0.4951]
[1756596328381,0.2934,4368.3,4367.8,0.3068]
[1756596328582,0.4914,4368.3,4368.2,0.4951]
[1756596328783,1.02816942,4368.3,4368.2,0.4951]
[1756596335181,1.02782362,4368.3,4368.2,0.4951]
[1756596336184,0.4914,4368.3,4368.2,0.4951]
[1756596337391,1.02788844,4368.3,4368.2,0.4951]
[1756596338292,0.4914,4368.3,4368.2,0.4951]
[1756596338483,1.02788493,4368.3,4368.2,0.3068]
[1756596338683,1.02788493,4368.3,4367.6,1.61364721]
[1756596338887,0.1888,4367.9,4367.8,0.508]
[1756596339193,0.4782,4367.9,4367.8,0.508]
[1756596356697,0.2894,4368.8,4367.8,0.2012]
[1756596356898,0.2894,4369.3,4368.6,0.2012]
[1756596357106,0.2894,4369.6,4369.5,0.508]
[1756596357502,0.2894,4369.9,4369.5,0.2012]
[1756596357703,3.3966,4370.0,4369.9,0.508]
[1756596357904,3.93213383,4370.0,4369.9,0.508]
[1756596358306,3.686,4370.0,4369.9,0.508]
[1756596359900,32.978,4371.3,4369.9,0.508]
[1756596359901,0.2894,4370.2,4369.9,0.508]
[1756596360110,0.4782,4370.2,4370.1,0.508]
[1756596360612,0.2894,4370.5,4370.4,0.2012]
[1756596360804,0.2894,4370.5,4370.4,0.508]
[1756596361005,0.4782,4370.5,4370.4,0.508]
[1756596361208,0.2894,4370.4,4369.9,0.3068]
[1756596361415,0.4782,4369.9,4369.8,0.508]
[1756596367712,0.2821,4370.5,4369.9,0.2916]
[1756596367908,0.1939,4370.0,4369.9,0.4825]
[1756596368108,0.476,4370.0,4369.9,0.4825]
[1756596368509,0.2821,4370.5,4370.0,0.2916]
[1756596368912,0.1939,4370.1,4370.0,0.4825]
[1756596369113,0.476,4370.1,4370.0,0.4825]
[1756596382721,0.2821,4371.0,4370.1,0.2916]
[1756596382926,0.1939,4370.3,4370.2,0.4209]
[1756596383227,0.476,4370.3,4370.2,0.7125]
[1756596384221,3.2078,4371.1,4370.3,0.2916]
[1756596384419,3.2078,4371.1,4370.8,0.4825]
[1756596384420,0.476,4370.9,4370.8,0.4825]
[1756596384926,3.4899,4371.1,4370.8,0.1909]
[1756596385128,3.2078,4371.1,4371.0,0.1909]
[1756596385327,3.4017,4371.1,4371.0,0.4825]
[1756596385729,3.6838,4371.1,4371.0,0.4825]
[1756596386024,0.2821,4371.4,4371.0,0.4825]
[1756596386230,0.476,4371.2,4371.1,0.4825]
[1756596388429,0.1939,4371.2,4371.1,0.4825]
[1756596388929,0.476,4371.2,4371.1,0.4825]
[1756596392826,3.2078,4371.8,4371.1,0.4825]
[1756596393026,0.476,4372.2,4372.1,0.1909]
[1756596393227,0.476,4372.2,4372.1,0.4825]
[1756596394332,3.2078,4372.3,4372.2,0.4825]
[1756596394532,3.2078,4372.3,4372.2,0.7125]
[1756596395032,3.6838,4372.3,4372.2,0.7125]
[1756596395732,3.6838,4372.3,4372.2,0.4825]
[1756596396327,0.476,4372.3,4372.2,0.4825]
[1756596398229,0.3092,4373.5,4372.9,0.5028]
[1756596398423,0.1937,4373.2,4373.1,0.5028]
[1756596398626,3.2078,4373.6,4373.1,0.5028]
[1756596398827,3.7107,4373.6,4373.5,0.5028]
[1756596399825,3.4015,4373.6,4373.5,0.5028]
[1756596400031,3.2078,4373.6,4373.5,0.5028]
[1756596401637,0.3092,4373.8,4373.5,3.4099]
[1756596401839,0.5029,4373.8,4373.7,0.5028]
[1756596402337,3.2078,4374.6,4373.7,0.2021]
[1756596402637,0.3092,4374.5,4373.8,0.3007]
[1756596402827,3.2078,4374.6,4373.8,0.23]
[1756596403031,0.1937,4374.0,4373.9,0.5028]
[1756596403228,3.2078,4374.6,4374.5,0.2021]
[1756596403433,0.3092,4375.0,4374.5,0.2021]
[1756596403629,0.5029,4375.0,4374.9,0.5028]
[1756596406040,0.5029,4375.1,4375.0,0.5028]
[1756596407042,0.5029,4375.1,4374.9,0.3007]
[1756596407839,0.1937,4375.1,4374.8,0.23]
[1756596408041,0.1937,4374.9,4374.8,0.5307]
[1756596408340,0.5029,4374.9,4374.8,0.7328]
[1756596417641,0.1937,4374.9,4374.6,0.3007]
[1756596417846,0.5029,4374.7,4374.6,0.5307]
[1756596418548,0.5029,4374.6,4374.5,0.5307]
[1756596418749,0.5029,4374.6,4374.5,0.7328]
[1756596419650,0.5029,4374.6,4374.5,0.5028]
[1756596419852,0.5029,4374.6,4374.5,0.7328]
[1756596420543,0.5029,4374.6,4374.5,0.5028]
[1756596420749,0.5029,4374.6,4374.5,0.7328]
[1756596420950,0.5029,4374.6,4374.3,0.3007]
[1756596421258,0.5029,4374.6,4374.4,0.23]
[1756596421452,0.1937,4374.6,4374.4,0.23]
[1756596421751,0.3092,4374.5,4374.4,0.7328]
[1756596422652,3.2078,4374.7,4374.5,0.3007]
[1756596422853,3.2078,4374.7,4374.6,0.2021]
[1756596423045,3.2078,4374.7,4374.6,0.5028]
[1756596423353,0.3092,4375.4,4374.7,0.3007]
[1756596423652,0.1937,4374.8,4374.7,0.5028]
[1756596423854,0.5029,4374.8,4374.7,0.5028]
[1756596424052,0.3092,4375.4,4374.8,0.3007]
[1756596426141,0.5029,4375.4,4375.3,0.2021]
[1756596426345,1.03500015,4375.4,4375.3,0.5028]
[1756596427843,1.03500015,4375.4,4375.3,0.3007]
[1756596429050,1.03500015,4375.4,4374.4,0.23]
[1756596429246,0.53210015,4375.3,4374.5,0.2839]
[1756596429448,1.01850015,4375.2,4375.1,0.4841]
[1756596429955,1.01850015,4375.2,4374.4,0.23]
[1756596430150,0.53210015,4375.1,4374.5,0.2839]
[1756596430453,0.4864,4374.6,4374.5,0.2839]
[1756596430945,0.4864,4374.6,4374.5,0.4841]
[1756596431746,0.53414661,4374.9,4374.5,0.2002]
[1756596431747,0.2922,4374.9,4374.5,0.2002]
[1756596431952,0.53412976,4374.8,4374.5,0.2002]
[1756596432149,3.5,4375.0,4374.5,0.2002]
[1756596432348,0.2922,4374.8,4374.7,0.2002]
[1756596432549,0.4864,4374.8,4374.7,0.4841]
[1756596432748,3.2078,4375.5,4374.7,0.4841]
[1756596432948,0.82648907,4375.4,4374.8,0.2839]
[1756596433151,0.53428907,4375.3,4374.8,0.2839]
[1756596433357,0.72848907,4375.3,4375.2,0.2002]
[1756596433546,1.02068907,4375.3,4375.2,0.4841]
[1756596434151,0.53428907,4375.3,4375.2,0.4841]
[1756596434357,0.53428907,4375.4,4375.2,0.2002]
[1756596434559,1.02068907,4375.4,4375.3,0.4841]
[1756596437057,1.02068907,4375.4,4375.3,0.2839]
[1756596437956,1.02068907,4375.4,4374.7,0.23]
[1756596438154,0.4864,4374.9,4374.8,0.4841]
[1756596438754,0.2922,4375.1,4374.8,0.4841]
[1756596438954,0.2922,4375.1,4374.9,0.2839]
[1756596439149,0.4864,4375.1,4375.0,0.4841]
[1756596441567,0.1942,4375.1,4375.0,0.4841]
[1756596442966,0.2922,4375.3,4375.1,0.2839]
[1756596443159,3.5,4376.0,4375.3,0.2839]
[1756596443365,3.6942,4376.0,4375.9,0.4841]
[1756596443561,0.4864,4376.5,4376.4,0.2002]
[1756596443761,1.02030005,4376.5,4376.4,0.4841]
[1756596445175,3.2078,4376.6,4376.5,0.4841]
[1756596445870,3.5,4376.6,4376.5,0.4841]
[1756596446071,3.6942,4376.6,4376.5,0.4841]
[1756596447277,0.4864,4376.6,4376.5,0.4841]
[1756596448584,0.4864,4376.6,4376.5,0.2839]
[1756596448779,0.1942,4376.3,4376.2,0.5139]
[1756596449084,0.4864,4376.3,4376.2,0.7141]
[1756596449278,0.4864,4376.3,4376.2,0.4841]
[1756596450588,0.1942,4376.1,4376.0,0.23]
[1756596450778,0.2922,4376.0,4375.8,0.23]